bitfinex-derivatives/quotes_SOLF0:USTF0_20240910
["timestamp","ask_amount","ask_price","bid_price","bid_amount"]
[1725939779909,3.3812,133.08,133.05,3.3818]
[1725939781202,3.3815,133.07,133.05,3.3818]
[1725939782310,3.3813,133.08,133.05,3.3818]
[1725939784408,3.3815,133.07,133.05,3.3818]
[1725939786505,3.3815,133.07,133.04,7.05852353]
[1725939786713,22.55,133.06,133.02,1.3317]
[1725939786908,9.23,133.04,133.01,3.84360902]
[1725939787214,9.23,133.04,132.98,9.23]
[1725939787504,12.6123,133.04,133.0,3.3831]
[1725939787704,12.6123,133.04,133.01,3.84401323]
[1725939787910,35.1623,133.04,133.01,3.84401323]
[1725939788313,3.3826,133.03,132.98,9.23]
[1725939788811,31.78,133.04,132.98,9.23]
[1725939789204,31.78,133.04,132.97,1.3403]
[1725939789404,31.78,133.04,132.98,9.23]
[1725939790214,35.1623,133.04,133.0,3.3832]
[1725939793009,35.1623,133.04,133.0,3.3083332]
[1725939794610,3.3823,133.04,133.0,12.5383332]
[1725939794830,25.9323,133.04,133.0,12.5383332]
[1725939797541,25.9323,133.04,133.01,3.383]
[1725939799827,22.55,133.04,133.02,3.3826]
[1725939800327,22.55,133.04,133.01,12.91221918]
[1725939800913,22.55,133.05,133.01,12.91221918]
[1725939801126,22.55,133.05,133.03,3.3825]
[1725939805028,25.932,133.05,133.02,3.3826]
[1725939806117,22.55,133.04,133.02,3.3826]
[1725939806725,25.9322,133.04,133.02,3.3826]
[1725939807131,25.9322,133.04,133.01,3.3829]
[1725939808225,22.55,133.04,133.02,3.3827]
[1725939810226,25.9322,133.04,133.01,3.3829]
[1725939812236,12.6122,133.04,133.01,3.3829]
[1725939812434,22.55,133.03,133.01,3.3829]
[1725939815535,25.9325,133.03,133.01,3.3829]
[1725939815738,22.55,133.03,133.01,3.3829]
[1725939816338,31.78,133.02,132.97,1.3403]
[1725939816641,31.78,133.02,132.97,10.5703]
[1725939817043,31.78,133.02,132.99,3.3833]
[1725939817241,31.78,133.02,132.98,9.23]
[1725939817540,3.3823,133.04,133.0,3.383]
[1725939817735,25.9323,133.04,133.0,3.383]
[1725939817936,22.55,133.04,132.99,9.23]
[1725939820143,22.55,133.04,133.02,3.3826]
[1725939824350,22.55,133.03,133.01,9.23]
[1725939824937,22.55,133.03,133.02,3.3827]
[1725939825348,22.55,133.05,132.97,1.3403]
[1725939825539,22.55,133.05,133.0,9.23]
[1725939825839,22.55,133.05,133.03,3.3823]
[1725939826744,22.55,133.05,133.04,3.3822]
[1725939827745,9.23,133.08,133.05,3.3819]
[1725939827746,22.55,133.07,133.05,3.3819]
[1725939833153,25.9315,133.07,133.04,3.3821]
[1725939835456,12.6117,133.06,133.04,3.3821]
[1725939835660,22.55,133.05,133.04,3.3821]
[1725939835858,22.55,133.05,133.03,3.3824]
[1725939836457,22.55,133.05,133.04,3.3822]
[1725939836660,22.55,133.06,133.04,3.3822]
[1725939837056,22.55,133.06,133.05,3.382]
[1725939837657,22.55,133.07,133.05,3.382]
[1725939844966,25.9315,133.07,133.01,5.05134531]
[1725939845270,25.9315,133.07,133.03,9.23]
[1725939845972,22.55,133.07,133.05,3.3819]
[1725939848472,25.9313,133.08,133.06,3.3817]
[1725939848666,35.1613,133.08,133.06,3.3817]
[1725939848971,35.1613,133.08,133.03,9.23]
[1725939850170,31.78,133.08,133.04,9.23]
[1725939850599,31.78,133.08,133.06,3.3816]
[1725939850765,22.55,133.08,133.06,3.3816]
[1725939851272,22.55,133.06,132.99,9.23]
[1725939851468,31.78,133.05,132.99,9.23]
[1725939851669,31.78,133.05,133.0,10.5465]
[1725939851870,22.55,133.05,133.01,3.7100464]
[1725939852075,22.56,133.08,133.02,9.23]
[1725939852971,25.9413,133.08,133.04,3.3821]
[1725939856671,3.3822,133.04,133.01,6.4988631]
[1725939856978,3.72697195,133.09,133.01,6.4988631]
[1725939856979,31.79,133.06,133.01,5.1099631]
[1725939857681,35.1719,133.06,133.02,3.3825]
[1725939858180,35.1719,133.06,133.03,3.3824]
[1725939860179,31.79,133.06,133.01,14.3399631]
[1725939860374,22.56,133.06,133.01,14.3399631]
[1725939860774,22.56,133.06,133.03,3.3824]
[1725939866881,25.9417,133.06,133.03,3.3824]
[1725939869282,22.56,133.06,133.04,3.3822]
[1725939881990,3.3816,133.07,133.04,3.3822]
[1725939882393,25.9416,133.07,133.04,3.3822]
[1725939883293,22.56,133.07,133.02,9.23]
[1725939883499,22.56,133.06,133.05,3.3819]
[1725939884592,25.9413,133.08,133.05,3.3819]
[1725939897497,22.56,133.07,133.05,3.3819]
[1725939900606,25.9415,133.07,133.02,9.23]
[1725939900907,22.56,133.06,133.01,6.4534631]
[1725939901108,22.56,133.06,133.01,15.6834631]
[1725939901819,25.9418,133.06,133.01,15.6834631]
[1725939902606,25.9418,133.06,133.02,3.3825]
[1725939903910,25.9418,133.06,133.03,3.3824]
[1725939910917,25.942,133.05,133.02,3.3826]
[1725939911118,25.942,133.05,133.0,10.5465]
[1725939911119,22.56,133.05,133.0,10.5465]
[1725939912324,3.3823,133.04,133.01,3.3829]
[1725939914123,3.3823,133.04,133.02,3.3827]
[1725939915722,3.3823,133.04,133.01,3.3829]
[1725939916218,22.56,133.03,133.01,3.3829]
[1725939916621,25.9426,133.03,132.99,3.3834]
[1725939916822,31.79,133.03,132.97,11.8731]
[1725939917613,35.1726,133.03,133.0,3.3832]
[1725939920038,3.3827,133.02,133.0,3.3832]
[1725939921734,25.9425,133.03,133.0,3.3832]
[1725939923132,3.3823,133.04,133.01,3.3828]
[1725939923336,25.9423,133.04,133.01,3.3828]
[1725939925440,3.3825,133.03,133.01,3.3828]
[1725939926041,3.3825,133.03,133.0,3.3832]
[1725939926241,25.9425,133.03,133.0,3.3832]
[1725939933349,3.3825,133.03,133.0,3.3832]
[1725939934151,22.56,133.04,133.0,9.23]
[1725939934358,25.9421,133.05,133.0,9.23]
[1725939936157,25.9421,133.05,133.02,3.3826]
[1725939942655,22.56,133.05,133.03,3.3824]
[1725939943057,2.0833,133.14,133.04,9.23]
[1725939943253,2.0833,133.14,132.89,7.521]
[1725939943254,1.13755713,133.13,133.07,9.23]
[1725939943461,1.3078,133.14,133.07,9.23]
[1725939943764,9.23,133.13,133.07,9.23]
[1725939943964,22.56,133.12,133.07,9.23]
[1725939945163,25.9402,133.12,133.09,3.3808]
[1725939947966,22.56,133.12,133.09,3.3808]
[1725939949064,1.4044,133.15,133.08,9.23]
[1725939949065,23.9644,133.15,133.08,9.23]
[1725939949262,25.2684,133.2,133.12,9.23]
[1725939949457,25.2684,133.2,133.12,12.89599932]
[1725939949458,1.13803846,133.19,133.12,12.89599932]
[1725939949658,38.97021575,133.2,133.16,3.3791]
[1725939949659,28.6467,133.2,133.16,3.3791]
[1725939949859,36.572,133.2,133.16,3.3791]
[1725939950868,3.3784,133.19,133.15,3.3793]
[1725939951568,3.3787,133.18,133.14,12.6096]
[1725939952961,22.56,133.18,133.13,6.1334]
[1725939953162,22.56,133.18,133.13,15.3634]
[1725939953776,31.79,133.18,133.13,11.9836]
[1725939953972,9.23,133.15,133.03,10.53716193]
[1725939954265,9.23,133.15,133.09,9.23]
[1725939954469,12.6097,133.15,133.1,7.07847145]
[1725939954866,9.23,133.15,133.1,3.69797145]
[1725939955470,3.3798,133.14,133.1,3.69797145]
[1725939955666,9.23,133.15,133.09,9.23]
[1725939956074,3.3797,133.14,133.1,3.3805]
[1725939956969,31.79,133.15,133.1,3.3805]
[1725939957565,3.3798,133.14,133.1,3.3805]
[1725939958564,3.3799,133.13,133.09,12.6108]
[1725939959374,3.3798,133.14,133.1,3.3807]
[1725939961470,3.3801,133.13,133.09,12.6109]
[1725939965170,3.3802,133.12,133.09,12.6109]
[1725939965674,31.79,133.15,133.09,12.6109]
[1725939965874,3.3801,133.13,133.09,12.6109]
[1725939967188,3.3803,133.12,133.09,12.6109]
[1725939973781,22.56,133.15,133.1,9.23]
[1725939973975,22.56,133.15,133.12,9.23]
[1725939974779,22.56,133.15,133.13,3.3799]
[1725939975385,3.3793,133.16,133.12,12.6101]
[1725939975577,3.3795,133.15,133.12,12.6101]
[1725939978077,22.56,133.16,133.13,3.3798]
[1725939979083,3.3792,133.16,133.13,3.3798]
[1725939981284,22.56,133.17,133.13,3.3798]
[1725939981285,22.56,133.17,133.13,9.23]
[1725939981490,22.56,133.19,133.15,9.23]
[1725939982095,22.56,133.19,133.12,1.3871]
[1725939982096,22.56,133.19,133.16,9.23]
[1725939982587,25.9381,133.21,133.17,3.3789]
[1725939986401,3.3782,133.2,133.16,12.6091]
[1725939989496,31.79,133.21,133.12,1.3871]
[1725939989696,22.56,133.19,133.14,9.23]
[1725939990095,22.56,133.19,133.15,3.3792]
[1725939990096,25.9385,133.19,133.15,3.3792]
[1725939990308,25.9385,133.19,133.14,9.23]
[1725939991202,25.9385,133.19,133.16,3.3792]
[1725939991995,25.9385,133.19,133.15,3.3794]
[1725939992802,3.3787,133.18,133.15,3.3794]
[1725940004008,22.56,133.18,133.12,1.3871]
[1725940004205,22.56,133.18,133.12,10.6171]
[1725940004708,3.379,133.17,133.14,12.6095]
[1725940004913,22.56,133.18,133.14,9.23]
[1725940005206,22.56,133.18,133.15,12.6094]
[1725940005207,3.3788,133.18,133.15,12.6094]
[1725940006914,22.56,133.19,133.15,9.23]
[1725940008110,3.3788,133.18,133.15,12.6093]
[1725940012008,3.3785,133.19,133.16,12.6091]
[1725940014117,3.3787,133.18,133.16,9.23]
[1725940016717,3.379,133.17,133.12,1.3871]
[1725940016906,3.379,133.17,133.14,9.23]
[1725940017315,3.3792,133.16,133.14,9.23]
[1725940018612,3.379,133.17,133.14,9.23]
[1725940021928,3.3792,133.16,133.14,9.23]
[1725940022129,22.56,133.17,133.12,13.9972]
[1725940023145,3.3793,133.16,133.13,3.3799]
[1725940023424,22.56,133.17,133.12,10.6171]
[1725940023623,22.56,133.17,133.12,9.23]
[1725940023929,3.3796,133.15,133.12,12.6101]
[1725940025322,3.3797,133.14,133.11,4.7733]
[1725940025525,3.3797,133.14,133.12,9.23]
[1725940025725,3.69740599,133.16,133.12,9.23]
[1725940026421,3.3796,133.15,133.12,9.23]
[1725940031736,3.3797,133.14,133.12,9.23]
[1725940034836,3.3797,133.14,133.11,1.3929]
[1725940035027,22.56,133.14,133.11,1.3929]
[1725940035232,22.56,133.14,133.09,12.6108]
[1725940035835,3.3801,133.13,133.09,12.6108]
[1725940039546,3.3801,133.13,133.1,3.3807]
[1725940040054,3.3797,133.14,133.09,9.23]
[1725940041154,3.3797,133.14,133.1,3.3806]
[1725940045963,3.38,133.13,133.1,3.3806]
[1725940048855,25.9398,133.14,133.11,3.3804]
[1725940049056,22.56,133.14,133.11,9.23]
[1725940049456,22.56,133.14,133.12,3.3801]
[1725940049649,22.56,133.14,133.11,9.23]
[1725940049853,22.56,133.14,133.11,10.6331]
[1725940050055,26.25740599,133.16,133.11,10.6331]
[1725940050361,26.25740599,133.16,133.12,3.38]
[1725940051876,3.3796,133.15,133.12,3.38]
[1725940052654,3.3796,133.15,133.11,14.0135]
[1725940054060,3.3797,133.14,133.11,14.0135]
[1725940054855,3.3802,133.12,133.04,2.6295]
[1725940055062,3.3802,133.12,133.07,9.23]
[1725940055267,3.3802,133.12,133.09,9.23]
[1725940055765,3.3802,133.12,133.09,12.6108]
[1725940055955,25.94,133.13,133.09,12.6108]
[1725940056961,3.38,133.13,133.09,12.6108]
[1725940063172,3.3802,133.12,133.09,12.6108]
[1725940073078,25.9401,133.13,133.09,9.23]
[1725940073278,22.56,133.15,133.1,13.03374323]
[1725940073478,22.56,133.15,133.11,1.3819]
[1725940074175,22.56,133.15,133.11,10.6119]
[1725940074381,22.56,133.17,133.13,9.23]
[1725940076073,3.3792,133.16,133.13,12.6098]
[1725940077574,3.3792,133.16,133.13,3.3798]
[1725940077778,22.56,133.13,133.06,9.23]
[1725940077977,22.56,133.11,133.06,9.23]
[1725940078179,25.9405,133.11,133.08,3.3812]
[1725940079391,3.3805,133.11,133.08,3.3812]
[1725940083577,3.3807,133.1,133.07,12.6114]
[1725940085178,3.3807,133.1,133.07,3.3814]
[1725940085983,22.55,133.11,133.06,12.6116]
[1725940085984,3.381,133.09,133.06,12.6116]
[1725940087196,3.3808,133.1,133.07,3.3814]
[1725940087995,3.381,133.09,133.06,12.6116]
[1725940090496,3.3808,133.1,133.07,3.3814]
[1725940095497,25.9306,133.11,133.08,3.3811]
[1725940096301,35.1603,133.12,133.09,3.3809]
[1725940096601,1.4014,133.15,133.09,9.23]
[1725940096801,31.78,133.15,133.09,9.23]
[1725940097805,31.78,133.15,133.11,3.3804]
[1725940097806,3.3798,133.14,133.11,3.3804]
[1725940098801,3.3798,133.14,133.1,3.3806]
[1725940099406,3.3798,133.14,133.11,3.3804]
[1725940099804,25.9295,133.15,133.11,3.3804]
[1725940101914,22.55,133.15,133.11,3.3804]
[1725940102108,22.55,133.15,133.1,9.23]
[1725940102808,3.3797,133.14,133.11,3.3803]
[1725940107116,3.3797,133.14,133.11,7.06801837]
[1725940107409,22.55,133.15,133.05,2.7867]
[1725940107612,31.78,133.15,133.05,2.7867]
[1725940107914,31.78,133.15,133.08,9.23]
[1725940108114,31.78,133.15,133.05,2.7867]
[1725940108317,31.78,133.15,133.08,9.23]
[1725940108508,22.55,133.12,133.08,9.23]
[1725940108715,25.9304,133.12,133.08,12.611]
[1725940109418,25.9304,133.12,133.09,3.3809]
[1725940110412,22.55,133.12,133.09,3.3809]
[1725940120319,22.55,133.12,133.1,3.3807]
[1725940128626,25.93,133.13,133.1,3.3807]
[1725940128931,25.93,133.13,133.11,3.3804]
[1725940130826,3.38,133.13,133.11,3.3804]
[1725940131135,25.93,133.13,133.11,3.3804]
[1725940135336,25.93,133.13,133.1,3.3806]
[1725940136233,3.3803,133.12,133.09,3.3809]
[1725940136438,25.9303,133.12,133.09,3.3809]
[1725940137242,22.55,133.12,133.08,3.3812]
[1725940138142,3.3805,133.11,133.08,3.3812]
[1725940140248,25.9305,133.11,133.08,3.3812]
[1725940141848,3.381,133.09,133.05,2.7867]
[1725940142148,25.931,133.09,133.05,2.7867]
[1725940143144,25.931,133.09,133.06,3.3815]
[1725940143845,22.55,133.09,133.07,3.3814]
[1725940144051,2.0693,133.15,133.07,9.23]
[1725940144251,22.55,133.13,133.07,9.23]
[1725940144451,3.3804,133.12,133.08,3.3811]
[1725940147554,25.9305,133.11,133.08,3.3811]
[1725940147947,31.78,133.11,133.05,2.7867]
[1725940148157,3.3811,133.09,133.05,2.7867]
[1725940148550,3.3811,133.09,133.06,3.3816]
[1725940148952,22.55,133.11,133.05,6.1685]
[1725940149149,2.0693,133.15,132.95,231.7687]
[1725940149150,22.55,133.09,132.95,231.7687]
[1725940149351,22.55,133.09,133.02,9.23]
[1725940149352,9.23,133.08,133.02,9.23]
[1725940149555,35.1614,133.08,133.04,3.3821]
[1725940149771,35.1614,133.08,133.03,3.83165949]
[1725940149961,25.9314,133.08,133.03,9.23]
[1725940150149,25.9314,133.08,133.04,3.72453541]
[1725940150659,3.3814,133.08,133.04,3.72453541]
[1725940151060,3.3814,133.08,133.05,3.3819]
[1725940153759,3.3814,133.08,133.04,3.3821]
[1725940155955,22.55,133.09,133.04,3.3821]
[1725940155956,3.3815,133.07,133.04,3.3821]
[1725940156763,3.3813,133.08,133.04,3.3821]
[1725940157081,3.3813,133.08,133.05,3.3819]
[1725940159058,3.3815,133.07,133.04,3.3822]
[1725940160160,22.55,133.09,133.03,3.74088461]
[1725940160365,3.3817,133.07,132.96,3.9318]
[1725940160561,25.9317,133.07,133.02,9.23]
[1725940160761,25.9317,133.07,133.02,13.04193548]
[1725940160956,25.9317,133.07,133.04,3.3822]
[1725940162060,3.382,133.05,133.02,7.19453548]
[1725940163464,3.3818,133.06,133.03,3.3825]
[1725940171668,24.6193,133.15,133.02,13.04193548]
[1725940171870,22.55,133.12,133.06,9.23]
[1725940172272,22.55,133.1,133.07,3.3814]
[1725940172976,25.9308,133.1,133.07,3.3814]
[1725940173182,25.9308,133.1,133.06,3.3816]
[1725940173183,22.55,133.1,133.06,3.3816]
[1725940173673,25.931,133.09,133.06,3.3816]
[1725940173871,22.55,133.09,133.07,3.3814]
[1725940188480,25.931,133.09,133.04,9.23]
[1725940188681,31.78,133.09,133.03,11.9698]
[1725940188977,3.3814,133.08,133.03,2.7398]
[1725940189175,22.55,133.06,133.03,1.3988]
[1725940189882,22.55,133.06,133.04,3.3822]
[1725940194182,35.1614,133.08,133.04,3.3822]
[1725940194379,35.1614,133.08,133.04,3.3821]
[1725940194576,35.1614,133.08,133.03,10.6288]
[1725940195288,35.1614,133.08,133.05,3.382]
[1725940200585,25.9314,133.08,133.03,10.6288]
[1725940200785,3.3809,133.1,133.04,9.23]
[1725940200992,25.9309,133.1,133.04,9.23]
[1725940201186,31.78,133.1,133.06,3.3815]
[1725940202191,3.381,133.09,133.06,3.3815]
[1725940203492,35.1608,133.1,133.04,9.23]
[1725940203688,25.9308,133.1,133.04,9.23]
[1725940204190,25.9308,133.1,133.07,3.3813]
[1725940204390,22.55,133.1,133.07,3.3813]
[1725940204585,22.55,133.1,133.05,9.23]
[1725940204783,22.55,133.1,133.07,3.3812]
[1725940205188,22.55,133.1,133.05,9.23]
[1725940205991,22.55,133.1,133.07,3.3812]
[1725940211897,25.9308,133.1,133.07,3.3813]
[1725940214499,25.9308,133.1,133.05,9.23]
[1725940216093,25.9308,133.1,133.07,3.3814]
[1725940216507,12.611,133.09,133.03,13.3172]
[1725940216706,22.55,133.08,133.05,3.3818]
[1725940218595,22.55,133.06,132.89,33.65887985]
[1725940218797,31.78,133.03,132.97,9.23]
[1725940219104,35.1627,133.03,132.99,3.3833]
[1725940219601,3.3831,133.01,132.97,3.3839]
[1725940219805,3.3831,133.01,132.97,7.09340045]
[1725940222103,3.3831,133.01,132.98,3.3837]
[1725940222309,35.1628,133.02,132.98,3.3837]
[1725940223008,9.23,133.0,132.96,4.7279]
[1725940223311,9.23,133.0,132.96,1.3438]
[1725940223611,9.23,133.0,132.96,5.16272146]
[1725940223812,25.933,133.01,132.96,1.3438]
[1725940224014,22.55,133.01,132.96,1.3438]
[1725940224314,35.1628,133.02,132.98,3.3836]
[1725940228722,3.383,133.01,132.98,3.3836]
[1725940229918,35.1628,133.02,132.98,3.3836]
[1725940230620,35.1628,133.02,132.99,3.3835]
[1725940231219,22.55,133.02,133.0,3.3832]
[1725940232124,25.9325,133.03,133.0,3.3832]
[1725940234323,3.3828,133.02,132.99,3.3834]
[1725940234739,22.55,133.03,132.97,13.06246821]
[1725940235235,25.9327,133.03,132.99,3.3833]
[1725940236132,3.3828,133.02,132.99,3.3833]
[1725940240939,3.3828,133.02,133.0,3.3832]
[1725940241140,25.9326,133.03,133.0,3.3832]
[1725940243541,3.3827,133.02,133.0,3.3832]
[1725940243740,3.3827,133.02,132.99,3.3834]
[1725940249162,25.9327,133.03,133.0,3.3832]
[1725940251752,3.3827,133.03,133.0,3.3832]
[1725940258958,3.3827,133.03,133.01,3.383]
[1725940259865,25.9323,133.04,133.01,3.383]
[1725940260055,31.78,133.06,133.0,9.23]
[1725940260759,3.382,133.05,133.02,3.3826]
[1725940260961,31.78,133.06,133.0,9.23]
[1725940261160,3.382,133.05,133.02,3.3826]
[1725940262459,3.68166533,133.08,133.02,9.23]
[1725940262766,25.9317,133.07,133.02,9.23]
[1725940262949,22.55,133.07,133.02,9.23]
[1725940263155,31.78,133.07,133.02,9.23]
[1725940263355,22.55,133.05,132.97,6.56746821]
[1725940263552,22.55,133.05,132.99,9.23]
[1725940263960,3.3822,133.04,133.01,3.3828]
[1725940264859,35.1622,133.04,133.01,3.3828]
[1725940265461,31.78,133.04,133.01,3.3828]
[1725940266057,35.1623,133.04,133.01,3.3828]
[1725940271459,35.1623,133.04,132.97,6.56746821]
[1725940271460,3.3826,133.03,133.0,3.3831]
[1725940272666,35.1623,133.04,133.01,3.383]
[1725940274261,3.3825,133.03,132.97,6.56746821]
[1725940274491,3.3825,133.03,132.99,9.23]
[1725940275260,3.3825,133.03,133.01,3.383]
[1725940278564,35.1624,133.04,133.01,3.383]
[1725940279373,35.1624,133.04,132.99,9.23]
[1725940279374,3.3825,133.03,133.0,3.3831]
[1725940282077,22.55,133.02,132.97,5.20266821]
[1725940282376,22.55,133.02,132.97,1.3702]
[1725940282377,31.78,133.02,132.97,1.3702]
[1725940283174,3.3833,133.0,132.97,4.7541]
[1725940284775,3.3833,133.0,132.97,3.3839]
[1725940287674,9.23,133.0,132.96,3.69134262]
[1725940287974,31.78,132.99,132.92,1.3546]
[1725940288181,35.1636,132.99,132.95,3.3843]
[1725940288480,35.1636,132.99,132.93,9.23]
[1725940288965,35.1636,132.99,132.94,3.84825727]
[1725940289376,25.9336,132.99,132.95,9.23]
[1725940289978,25.9336,132.99,132.96,3.3841]
[1725940291673,22.55,133.02,132.97,3.384]
[1725940291869,22.55,133.0,132.97,3.384]
[1725940292677,22.55,133.0,132.96,9.23]
[1725940294176,25.9333,133.0,132.97,3.3839]
[1725940294779,22.55,132.99,132.97,3.3839]
[1725940295876,3.3833,133.0,132.97,3.3839]
[1725940301380,25.9333,133.0,132.97,3.3839]
[1725940305679,25.9336,132.99,132.96,3.3841]
[1725940306774,29.62670059,132.99,132.96,3.3841]
[1725940309184,3.3838,132.98,132.95,3.3844]
[1725940309490,3.3838,132.98,132.92,1.3546]
[1725940309491,25.9338,132.98,132.92,10.5846]
[1725940309684,25.9338,132.98,132.94,3.3847]
[1725940309885,3.3842,132.97,132.92,1.3546]
[1725940310182,31.78,132.98,132.92,10.5846]
[1725940310376,3.69310059,132.99,132.92,14.36243463]
[1725940310577,25.934,132.97,132.93,3.385]
[1725940310979,22.55,132.97,132.92,3.3851]
[1725940311181,22.55,132.97,132.92,9.23]
[1725940312079,25.9341,132.97,132.92,9.23]
[1725940312277,25.9341,132.97,132.91,5.21461092]
[1725940312489,25.9341,132.97,132.92,9.23]
[1725940312786,25.9341,132.97,132.93,3.3848]
[1725940315789,3.3843,132.96,132.93,3.3848]
[1725940315990,22.55,132.97,132.93,3.3848]
[1725940316184,25.9341,132.97,132.93,3.3848]
[1725940318488,3.3854,132.92,132.85,1.3396]
[1725940318693,22.55,132.93,132.85,1.3396]
[1725940318694,22.55,132.9,132.86,1.3366]
[1725940319595,22.55,132.9,132.87,3.3865]
[1725940321192,2.0973,132.96,132.88,9.23]
[1725940321396,22.59,132.93,132.88,9.23]
[1725940322899,25.9752,132.93,132.89,3.3859]
[1725940323400,3.3853,132.92,132.89,3.3859]
[1725940323598,3.3853,132.92,132.88,12.6162]
[1725940323900,3.3853,132.92,132.88,9.23]
[1725940325103,3.3853,132.92,132.89,3.386]
[1725940326496,25.9753,132.92,132.88,12.6162]
[1725940326903,3.3857,132.91,132.88,3.3862]
[1725940327896,25.9758,132.9,132.87,3.3865]
[1725940332504,22.59,132.9,132.87,3.3865]
[1725940334407,22.59,132.9,132.79,1.2992]
[1725940334408,25.9762,132.89,132.8,2.7062]
[1725940334602,25.9762,132.89,132.84,9.23]
[1725940334911,22.59,132.89,132.86,3.3866]
[1725940335308,22.59,132.89,132.8,2.7062]
[1725940335604,22.59,132.89,132.84,9.23]
[1725940335806,22.59,132.88,132.8,2.7062]
[1725940335999,22.59,132.88,132.84,9.23]
[1725940337009,22.59,132.9,132.87,3.3865]
[1725940337210,31.82,132.9,132.8,2.7062]
[1725940337410,31.82,132.9,132.83,9.23]
[1725940338118,35.2059,132.9,132.86,3.3867]
[1725940338921,22.59,132.9,132.85,9.23]
[1725940339116,2.0973,132.96,132.86,9.23]
[1725940339321,3.3849,132.94,132.9,3.3856]
[1725940339512,22.59,132.92,132.9,3.3856]
[1725940342028,22.59,132.91,132.89,3.386]
[1725940343715,31.82,132.91,132.89,3.386]
[1725940343919,31.82,132.91,132.88,3.3862]
[1725940344319,35.2057,132.91,132.81,1.3923]
[1725940344516,31.82,132.91,132.87,3.3865]
[1725940345028,25.976,132.89,132.83,9.23]
[1725940345210,22.59,132.89,132.83,9.23]
[1725940345415,22.59,132.89,132.86,3.3866]
[1725940347021,22.59,132.89,132.87,3.3865]
[1725940350124,12.6158,132.9,132.84,9.23]
[1725940350125,22.59,132.9,132.88,3.3863]
[1725940351721,22.59,132.9,132.84,9.23]
[1725940351722,22.59,132.9,132.89,3.386]
[1725940351921,22.59,132.91,132.89,3.386]
[1725940355117,3.3851,132.93,132.86,3.67227239]
[1725940355319,22.59,132.92,132.87,9.23]
[1725940355525,22.59,132.92,132.87,13.05020219]
[1725940355719,22.59,132.92,132.9,3.3857]
[1725940355959,22.59,132.92,132.87,13.05020219]
[1725940357123,22.59,132.92,132.9,3.3856]
[1725940364430,22.59,132.92,132.87,3.67773261]
[1725940364629,22.59,132.92,132.85,9.23]
[1725940364828,22.59,132.92,132.85,13.04435806]
[1725940365030,25.9754,132.92,132.89,3.3859]
[1725940369139,22.59,132.9,132.89,3.3859]
[1725940369938,22.59,132.9,132.88,3.3862]
[1725940370130,22.59,132.9,132.86,3.72102201]
[1725940371137,22.59,132.9,132.89,3.386]
[1725940375054,22.59,132.92,132.89,3.386]
[1725940375250,22.59,132.92,132.9,3.3857]
[1725940378053,31.82,132.92,132.83,9.23]